fUSD/lending_fUSD_20251224
["ID","MTS","AMOUNT","RATE_DAILY","PERIOD"]
[399623424,1766562640411,-150.0,0.00016647,2]
[399623425,1766562640421,-150.0,0.00016647,2]
[399623426,1766562640433,-8987.63010451,0.00016655,2]
[399623427,1766562640443,-150.0,0.00016703,2]
[399623428,1766562640453,-2000.0,0.00016816,2]
[399623429,1766562640463,-150.0,0.00016845,2]
[399623430,1766562640473,-840.82176489,0.0001689,2]
[399623431,1766562640483,-33504.5899,0.00016897,2]
[399623432,1766562640494,-1000.0,0.00016897,2]
[399623433,1766562640504,-1244.21357413,0.00016899,5]
[399623434,1766562640514,-317.406787,0.000169,2]
[399623435,1766562640524,-165.0,0.000169,2]
[399623436,1766562640534,-165.0,0.000169,2]
[399623437,1766562640544,-10000.0,0.000169,2]
[399623438,1766562640554,-8987.63010451,0.000169,2]
[399623439,1766562640564,-465.4164627,0.000169,2]
[399623440,1766562640574,-461.62877499,0.000169,2]
[399623441,1766562640584,-2169.47206371,0.000169,2]
[399623442,1766562640594,-532.29287114,0.000169,2]
[399623443,1766562640611,-500.0,0.000169,2]
[399623444,1766562640622,-500.0,0.000169,2]
[399623445,1766562640632,-500.0,0.000169,2]
[399623446,1766562640642,-500.0,0.000169,2]
[399623447,1766562640652,-500.0,0.000169,2]
[399623448,1766562640663,-500.0,0.000169,2]
[399623449,1766562640672,-500.0,0.000169,2]
[399623450,1766562640683,-500.0,0.000169,2]
[399623451,1766562640696,-500.0,0.000169,2]
[399623452,1766562640706,-500.0,0.000169,2]
[399623453,1766562640716,-500.0,0.000169,2]
[399623454,1766562640727,-500.0,0.000169,2]
[399623455,1766562640737,-500.0,0.000169,2]
[399623456,1766562640748,-500.0,0.000169,2]
[399623457,1766562640758,-500.0,0.000169,2]
[399623458,1766562640768,-500.0,0.000169,2]
[399623459,1766562640778,-500.0,0.000169,2]
[399623460,1766562640788,-500.0,0.000169,2]
[399623461,1766562640798,-500.0,0.000169,2]
[399623462,1766562640807,-500.0,0.000169,2]
[399623463,1766562640817,-500.0,0.000169,2]
[399623464,1766562640826,-500.0,0.000169,2]
[399623465,1766562640836,-500.0,0.000169,2]
[399623466,1766562640845,-500.0,0.000169,2]
[399623467,1766562640856,-500.0,0.000169,2]
[399623468,1766562640866,-425.97674525,0.000169,2]
[399623469,1766562640876,-999.99,0.00016922,2]
[399623470,1766562640886,-299.99,0.00016922,4]
[399623471,1766562640895,-9999.99,0.00016922,2]
[399623472,1766562640905,-9999.99,0.00016922,2]
[399623473,1766562640914,-520.54,0.00016922,2]
[399623474,1766562640924,-7401.84,0.00016922,2]
[399623475,1766562640934,-2033.81,0.00016922,2]
[399623476,1766562640943,-3384.97,0.00016922,2]
[399623477,1766562640954,-150.99,0.00016922,2]
[399623478,1766562640963,-205.14834602,0.0001693,2]
[399623479,1766562640973,-332018.3119993,0.00016958,2]
[399623480,1766562640983,-167.02,0.00016965,2]
[399623481,1766562640992,-150.0,0.00016973,2]
[399623482,1766562641002,-150.0,0.00016973,2]
[399623483,1766562641012,-151.0,0.00016983,2]
[399623484,1766562641023,-52378.98,0.00016986,2]
[399623485,1766562641033,-161.36386193,0.00016986,2]
[399623486,1766562641044,-170.99701499,0.00016986,2]
[399623487,1766562641054,-257.33467835,0.00016986,2]
[399623488,1766562641065,-165.56757256,0.00016986,2]
[399623489,1766562641075,-163.76766148,0.00016986,2]
[399623490,1766562641085,-154.07691811,0.00016986,2]
[399623491,1766562641095,-155.57587925,0.00016986,2]
[399623492,1766562641105,-156.0209703,0.00016986,2]
[399623493,1766562641115,-168.10359293,0.00016986,2]
[399623494,1766562641125,-840.82176489,0.0001699,2]
[399623495,1766562641136,-203.0,0.00016991,2]
[399623496,1766562641146,-2160.07046784,0.00016996,2]
[399623497,1766562641156,-374741.5900732,0.00016997,2]
[399623498,1766562641167,-8192.283171,0.00016997,2]
[399623499,1766562641176,-9600.2780884,0.00016997,2]
[399623500,1766562641187,-46045.4444158,0.00016997,2]
[399623501,1766562641197,-151.0,0.00016997,2]
[399623502,1766562641207,-681.12,0.00016998,2]
[399623503,1766562641217,-500.0,0.00016998,2]
[399623504,1766562641227,-300.0,0.00016999,2]
[399623505,1766562641236,-666.0,0.00016999,2]
[399623506,1766562641246,-681.12,0.00016999,2]
[399623507,1766562641258,-681.12,0.00016999,2]
[399623508,1766562641267,-681.12,0.00016999,2]
[399623509,1766562641278,-681.12,0.00016999,2]
[399623510,1766562641287,-681.12,0.00016999,2]
[399623511,1766562641298,-681.12,0.00016999,2]
[399623512,1766562641308,-681.12,0.00016999,2]
[399623513,1766562641317,-681.12,0.00016999,2]
[399623514,1766562641327,-681.12,0.00016999,2]
[399623515,1766562641337,-681.12,0.00016999,2]
[399623516,1766562641347,-681.12,0.00016999,2]
[399623517,1766562641358,-681.12,0.00016999,2]
[399623518,1766562641368,-681.12,0.00016999,2]
[399623519,1766562641378,-681.12,0.00016999,2]
[399623520,1766562641387,-681.12,0.00016999,2]
[399623521,1766562641397,-681.12,0.00016999,2]
[399623522,1766562641406,-681.12,0.00016999,2]
[399623523,1766562641417,-681.12,0.00016999,2]
[399623524,1766562641427,-681.12,0.00016999,2]
[399623525,1766562641437,-681.12,0.00016999,2]
[399623526,1766562641447,-681.27727388,0.00016999,2]
[399623527,1766562641457,-300.0,0.00016999,2]
[399623528,1766562641467,-671.0702352,0.00016999,2]
[399623529,1766562641476,-500.0,0.00016999,2]
[399623530,1766562641486,-500.0,0.00016999,2]
[399623531,1766562641496,-500.0,0.00016999,2]
[399623532,1766562641506,-500.0,0.00016999,2]
[399623533,1766562641516,-300.0,0.00016999,2]
[399623534,1766562641526,-666.0,0.00016999,2]
[399623535,1766562641536,-300.0,0.00016999,2]
[399623536,1766562641546,-666.0,0.00016999,2]
[399623537,1766562641555,-500.0,0.00016999,2]
[399623538,1766562641565,-546.92276658,0.00016999,2]
[399623539,1766562641575,-500.0,0.00016999,2]
[399623540,1766562641586,-500.0,0.00016999,2]
[399623541,1766562641595,-188.57399901,0.00016999,2]
[399623542,1766562641606,-500.0,0.00016999,2]
[399623543,1766562641619,-2289592.72122836,0.00017,2]
[399623544,1766562641629,-849490.6374733,0.00017,2]
[399623545,1766562641676,-1294.81404362,0.00017,2]
[399623546,1766562641690,-1114.05316861,0.00017,2]
[399623547,1766562641707,-1188.74622491,0.00017,2]
[399623548,1766562641850,-1825.86696782,0.00015155,2]
[399623549,1766562642226,-871.29316464,0.00015155,2]
[399623554,1766562643135,-446.09192275,0.00014595,2]
[399623555,1766562643145,-855.09213972,0.00015155,2]
[399623556,1766562643156,-942.2429927,0.00015155,2]
[399623557,1766562643203,-643.53439744,0.00015155,2]
[399623558,1766562643214,-837.98908115,0.00015155,2]
[399623571,1766562645719,-5743.19124712,0.00015155,2]
[399623572,1766562645731,-11719.20999059,0.00015405,2]
[399623573,1766562645741,-446.09192273,0.0001573,2]
[399623574,1766562645751,-7394.27828529,0.00017,2]
[399623575,1766562645762,-151.0,0.00017,2]
[399623576,1766562645773,-151.0,0.00017,2]
[399623577,1766562645784,-151.0,0.00017,2]
[399623578,1766562645801,-155.145345,0.00017,2]
[399623579,1766562645813,-151.0,0.00017,2]
[399623580,1766562645824,-151.748266,0.00017,2]
[399623581,1766562645835,-151.0,0.00017,2]
[399623582,1766562645845,-250.0,0.00017,2]
[399623583,1766562645856,-151.0,0.00017,2]
[399623584,1766562645866,-151.0,0.00017,2]
[399623585,1766562645877,-151.0,0.00017,2]
[399623586,1766562645888,-151.0,0.00017,2]
[399623587,1766562645898,-151.0,0.00017,2]
[399623588,1766562645910,-270.706318,0.00017,2]
[399623589,1766562645921,-270.706318,0.00017,2]
[399623590,1766562645932,-270.706318,0.00017,2]
[399623591,1766562645944,-270.706318,0.00017,2]
[399623592,1766562645955,-270.706318,0.00017,2]
[399623593,1766562645965,-270.706318,0.00017,2]
[399623594,1766562645976,-270.706318,0.00017,2]
[399623595,1766562645988,-270.706318,0.00017,2]
[399623597,1766562645998,-151.0,0.00017,2]
[399623599,1766562646009,-151.0,0.00017,2]
[399623600,1766562646019,-151.0,0.00017,2]
[399623602,1766562646030,-151.0,0.00017,2]
[399623604,1766562646040,-151.0,0.00017,2]
[399623605,1766562646051,-151.0,0.00017,2]
[399623606,1766562646061,-151.0,0.00017,2]
[399623607,1766562646071,-151.0,0.00017,2]
[399623608,1766562646082,-151.0,0.00017,2]
[399623609,1766562646092,-151.0,0.00017,2]
[399623610,1766562646103,-178.071661,0.00017,2]
[399623611,1766562646113,-178.071661,0.00017,2]
[399623612,1766562646124,-178.071661,0.00017,2]
[399623613,1766562646135,-178.071661,0.00017,2]
[399623614,1766562646146,-178.071661,0.00017,2]
[399623615,1766562646163,-178.071661,0.00017,2]
[399623616,1766562646173,-178.071661,0.00017,2]
[399623617,1766562646184,-178.071661,0.00017,2]
[399623618,1766562646195,-151.0,0.00017,2]
[399623619,1766562646206,-151.0,0.00017,2]
[399623620,1766562646216,-261.492483,0.00017,2]
[399623621,1766562646227,-219.024973,0.00017,2]
[399623622,1766562646238,-156.923475,0.00017,2]
[399623623,1766562646249,-151.0,0.00017,2]
[399623624,1766562646261,-151.0,0.00017,2]
[399623625,1766562646271,-151.0,0.00017,2]
[399623626,1766562646282,-151.0,0.00017,2]
[399623627,1766562646293,-157.023662,0.00017,2]
[399623628,1766562646303,-151.0,0.00017,2]
[399623629,1766562646314,-151.0,0.00017,2]
[399623630,1766562646325,-150.0,0.00017,2]
[399623631,1766562646336,-168.4,0.00017013,2]
[399623632,1766562646347,-433.0,0.00017046,2]
[399623633,1766562646358,-219.0,0.00017063,2]
[399623634,1766562646368,-500.0,0.0001711,2]
[399623635,1766562646378,-1157.58015954,0.00017111,2]
[399623636,1766562646389,-850.34,0.00017177,2]
[399623637,1766562646399,-219.0,0.00017186,2]
[399623638,1766562646411,-219.0,0.00017206,2]
[399623639,1766562646421,-219.0,0.00017244,2]
[399623640,1766562646431,-219.0,0.00017351,2]
[399623641,1766562646442,-219.0,0.00017362,2]
[399623642,1766562646452,-997.48903818,0.00017364,2]
[399623643,1766562646462,-219.0,0.0001741,2]
[399623644,1766562646473,-219.0,0.00017414,2]
[399623645,1766562646484,-219.0,0.00017449,2]
[399623646,1766562646494,-364.6925655,0.00017463,2]
[399623647,1766562646504,-387.99996657,0.00017463,2]
[399623648,1766562646519,-219.0,0.00017463,2]
[399623649,1766562646530,-300.0,0.000175,3]
[399623650,1766562646540,-219.0,0.000175,2]
[399623651,1766562646550,-219.0,0.00017516,2]
[399623652,1766562646561,-219.0,0.00017549,2]
[399623653,1766562646571,-1270.0,0.00017613,2]
[399623654,1766562646581,-587.0,0.00017613,2]
[399623655,1766562646591,-167.26,0.00017625,2]
[399623656,1766562646601,-219.0,0.00017647,2]
[399623657,1766562646615,-219.0,0.00017712,2]
[399623658,1766562646625,-500.0,0.00017715,2]
[399623659,1766562646635,-219.0,0.00017716,2]
[399623660,1766562646647,-219.0,0.0001776,2]
[399623661,1766562646658,-219.0,0.00017764,2]
[399623662,1766562646669,-2351.0,0.00017781,2]
[399623663,1766562646680,-155.91494256,0.00017808,2]
[399623664,1766562646691,-167.02,0.00017849,2]
[399623665,1766562646702,-219.0,0.00017861,2]
[399623666,1766562646712,-500.0,0.000179,3]
[399623667,1766562646723,-500.0,0.000179,3]
[399623668,1766562646733,-300.0,0.000179,4]
[399623669,1766562646744,-300.0,0.000179,5]
[399623670,1766562646754,-482.42,0.000179,3]
[399623671,1766562646764,-309.66881756,0.00017937,2]
[399623672,1766562646774,-9951.2,0.00017987,2]
[399623673,1766562646785,-50008.20012954,0.00018,2]
[399623674,1766562646795,-1000.0,0.00018082,2]
[399623675,1766562646806,-322.6107,0.00018111,2]
[399623676,1766562646816,-250.0,0.00018111,2]
[399623677,1766562646827,-250.0,0.00018111,2]
[399623678,1766562646837,-250.0,0.00018111,2]
[399623679,1766562646847,-543.0,0.00018111,2]
[399623680,1766562646858,-250.0,0.00018111,2]
[399623681,1766562646868,-250.0,0.00018111,2]
[399623682,1766562646883,-250.0,0.00018111,2]
[399623683,1766562646893,-250.0,0.00018111,2]
[399623684,1766562646903,-250.0,0.00018111,2]
[399623685,1766562646914,-250.0,0.00018111,2]
[399623686,1766562646924,-250.0,0.00018111,2]
[399623687,1766562646934,-250.0,0.00018111,2]
[399623688,1766562646944,-250.0,0.00018111,2]
[399623689,1766562646956,-250.0,0.00018111,2]
[399623690,1766562646966,-263.8761222,0.00018111,2]
[399623691,1766562646976,-250.0,0.00018111,2]
[399623692,1766562646987,-250.0,0.00018111,2]
[399623693,1766562646998,-250.0,0.00018111,2]
[399623694,1766562647008,-250.0,0.00018111,2]
[399623695,1766562647018,-250.0,0.00018111,2]
[399623696,1766562647028,-250.0,0.00018111,2]
[399623697,1766562647039,-255.20951263,0.00018111,2]
[399623698,1766562647049,-250.0,0.00018111,2]
[399623699,1766562647059,-250.0,0.00018111,2]
[399623700,1766562647072,-250.0,0.00018111,2]
[399623701,1766562647083,-158.93866677,0.00018111,2]
[399623702,1766562647094,-200.0,0.00018111,2]
[399623703,1766562647104,-207.4,0.00018111,2]
[399623704,1766562647115,-215.0738,0.00018111,2]
[399623705,1766562647126,-223.0315306,0.00018111,2]
[399623706,1766562647136,-231.28369723,0.00018111,2]
[399623707,1766562647147,-239.84119403,0.00018111,2]
[399623708,1766562647158,-248.71531821,0.00018111,2]
[399623709,1766562647168,-257.91778498,0.00018111,2]
[399623710,1766562647179,-267.46074303,0.00018111,2]
[399623711,1766562647189,-277.35679052,0.00018111,2]
[399623712,1766562647200,-620.0,0.00018111,2]
[399623713,1766562647211,-732.29652609,0.00018111,2]
[399623714,1766562647222,-500.0,0.00018111,2]
[399623715,1766562647232,-500.0,0.00018111,2]
[399623716,1766562647243,-500.0,0.00018111,2]
[399623717,1766562647253,-352.11821613,0.00018111,2]
[399623718,1766562647264,-557.59218628,0.00018111,2]
[399623719,1766562647275,-500.0,0.00018111,2]
[399623720,1766562647285,-500.0,0.00018111,2]
[399623721,1766562647296,-625.13117778,0.00018111,2]
[399623722,1766562647306,-578.20924308,0.00018111,2]
[399623723,1766562647317,-500.0,0.00018111,2]
[399623724,1766562647327,-500.0,0.00018111,2]
[399623725,1766562647338,-500.0,0.00018111,2]
[399623726,1766562647349,-500.0,0.00018111,2]
[399623727,1766562647359,-500.0,0.00018111,2]
[399623728,1766562647370,-500.0,0.00018111,2]
[399623729,1766562647380,-500.0,0.00018111,2]
[399623730,1766562647390,-500.0,0.00018111,2]
[399623731,1766562647400,-500.0,0.00018111,2]
[399623732,1766562647410,-500.0,0.00018111,2]
[399623733,1766562647420,-619.32118266,0.00018111,2]
[399623734,1766562647431,-152.90144373,0.00018111,2]
[399623735,1766562647441,-219.0,0.00018207,2]
[399623736,1766562647451,-219.0,0.0001826,2]
[399623737,1766562647461,-463.27332165,0.00018268,2]
[399623740,1766562769748,10000.01,0.00014542,2]
[399623741,1766562769780,10000.01,0.00014542,2]
[399623742,1766562769812,10000.01,0.00014542,2]
[399623743,1766562769845,10000.01,0.00014542,2]
[399623744,1766562769876,10000.01,0.00014542,2]
[399623745,1766562769909,10000.01,0.00014542,2]
[399623746,1766562769941,10000.01,0.00014542,2]
[399623747,1766562769972,10000.01,0.00014542,2]
[399623748,1766562770002,10000.01,0.00014542,2]
[399623749,1766562770033,10000.01,0.00014542,2]
[399623750,1766562780844,-4757.00003768,0.00014542,2]
[399623751,1766562781000,-10000.01,0.00014542,2]
[399623752,1766562781127,-10000.01,0.00014542,2]
[399623753,1766562781262,-300.0,0.00014541,2]
[399623754,1766562781304,-9400.01,0.00014542,2]
[399623755,1766562783171,-10000.01,0.00014542,2]
[399623756,1766562783288,-10000.01,0.00014542,2]
[399623757,1766562783397,-10000.01,0.00014542,2]
[399623758,1766562783502,-10000.01,0.00014542,2]
[399623759,1766562783632,-10000.01,0.00014542,2]
[399623761,1766562789595,-1200.0,0.00014541,2]
[399623762,1766562790406,-7600.01,0.00014542,2]
[399623763,1766562795312,-10000.01,0.00014542,2]
[399623770,1766563186410,-202.617375,0.00014367,2]
[399623771,1766563186441,-816.933918,0.0001444,2]
[399623772,1766563186473,-250.0,0.00014441,2]
[399623773,1766563186503,-557.34236677,0.00014442,2]
[399623774,1766563186534,-816.933918,0.00014491,2]
[399623775,1766563186564,-1200.0,0.00014532,2]
[399623776,1766563186684,-2312.35484446,0.00014533,2]
[399623777,1766563189242,-4238.48342763,0.00014533,2]
[399623778,1766563189282,-1523.04314474,0.00014533,2]
[399623779,1766563192342,-3073.74318759,0.00014533,2]
[399623780,1766563192371,-3852.52362482,0.00014533,2]
[399623783,1766563305671,-631.72318274,0.00014251,2]
[399623784,1766563310174,-2.23981726,0.00014251,2]
[399623785,1766563310200,-221.01205036,0.00014367,2]
[399623786,1766563317726,-238.8643423,0.00014367,2]
[399623788,1766563333053,-40.12360734,0.00014367,2]
[399623789,1766563333090,-1200.0,0.0001454,2]
[399623790,1766563333122,-300.0,0.0001454,2]
[399623791,1766563333155,-300.0,0.0001454,2]
[399623792,1766563333188,-150.0,0.0001454,2]
[399623793,1766563333221,-300.0,0.0001454,2]
[399623794,1766563333254,-312.62996523,0.00014541,2]
[399623795,1766563333287,-173.60462296,0.00014541,2]
[399623796,1766563333325,-500.0,0.00014541,2]
[399623797,1766563333360,-200.28583672,0.00014541,2]
[399623798,1766563333399,-500.0,0.00014541,2]
[399623799,1766563333438,-500.0,0.00014541,2]
[399623800,1766563333476,-500.0,0.00014541,2]
[399623801,1766563334335,-46.7219355,0.00014541,2]
[399623802,1766563338922,-453.2780645,0.00014541,2]
[399623803,1766563338959,-500.0,0.00014541,2]
[399623804,1766563338995,-500.0,0.00014541,2]
[399623805,1766563339029,-500.0,0.00014541,2]
[399623806,1766563339063,-159.90248279,0.00014541,2]
[399623807,1766563339097,-500.0,0.00014541,2]
[399623808,1766563339129,-500.0,0.00014541,2]
[399623809,1766563339164,-500.0,0.00014541,2]
[399623810,1766563339197,-500.0,0.00014541,2]
[399623811,1766563339231,-500.0,0.00014541,2]
[399623812,1766563339265,-273.64890542,0.00014541,2]
[399623813,1766563339503,-226.35109458,0.00014541,2]
[399623814,1766563344986,-586.47533894,0.00014442,2]
[399623815,1766563345017,-519.59185884,0.00014533,2]
[399623816,1766563345053,-500.0,0.00014541,2]
[399623817,1766563345088,-500.0,0.00014541,2]
[399623818,1766563345123,-500.0,0.00014541,2]
[399623819,1766563345158,-500.0,0.00014541,2]
[399623820,1766563345194,-500.0,0.00014541,2]
[399623821,1766563345230,-500.0,0.00014541,2]
[399623822,1766563345266,-500.0,0.00014541,2]
[399623823,1766563345303,-287.87560444,0.00014541,2]
[399623824,1766563346251,-212.12439556,0.00014541,2]
[399623825,1766563348201,-500.0,0.00014541,2]
[399623826,1766563348568,-500.0,0.00014541,2]
[399623827,1766563348602,-500.0,0.00014541,2]
[399623828,1766563348637,-500.0,0.00014541,2]
[399623829,1766563348671,-500.0,0.00014541,2]
[399623830,1766563348706,-500.0,0.00014541,2]
[399623831,1766563348741,-500.0,0.00014541,2]
[399623832,1766563348773,-295.26047867,0.00014541,2]
[399623833,1766563348803,-500.0,0.00014541,2]
[399623834,1766563348836,-382.8459366,0.00014541,2]
[399623835,1766563348873,-32.77012755,0.00014541,2]
[399623836,1766563349140,-151.0,0.00014533,2]
[399623837,1766563349150,-427.25691436,0.00014541,2]
[399623838,1766563351190,-151.0,0.00014533,2]
[399623839,1766563351223,-151.0,0.00014533,2]
[399623840,1766563351258,-151.0,0.00014533,2]
[399623841,1766563351292,-151.0,0.00014541,2]
[399623842,1766563351327,-500.0,0.00014541,2]
[399623843,1766563351360,-500.0,0.00014541,2]
[399623844,1766563351393,-500.0,0.00014541,2]
[399623845,1766563351426,-500.0,0.00014541,2]
[399623846,1766563351621,-4792.01,0.00014542,2]
[399623847,1766563357223,-355.30880489,0.00014442,2]
[399623848,1766563357254,-151.0,0.00014533,2]
[399623849,1766563357287,-151.0,0.00014533,2]
[399623850,1766563357334,-151.0,0.00014533,2]
[399623851,1766563357372,-151.0,0.00014533,2]
[399623852,1766563357415,-151.0,0.00014533,2]
[399623853,1766563357460,-151.0,0.00014533,2]
[399623854,1766563357641,-7477.39239022,0.00014542,2]
[399623856,1766563425560,-262.43510493,0.00014433,2]
[399623857,1766563428826,-169.60403793,0.00014433,2]
[399623861,1766563560638,-200.0,0.00013699,2]
[399623862,1766563565433,-238.28198574,0.00013699,2]
[399623864,1766563567564,-170.87836276,0.00013699,2]
[399623865,1766563573756,-5000000.0,0.00042778,7]
[399623866,1766563583866,-4003499.47498105,0.00042778,7]
[399623867,1766563583896,-478.08644991,0.00042778,7]
[399623868,1766563583929,-558.71574032,0.00042778,7]
[399623869,1766563583963,-223.93058955,0.00042778,7]
[399623870,1766563583994,-352.20525496,0.00042778,7]
[399623871,1766563584028,-994887.58698421,0.00042778,7]
[399623875,1766563643468,560.0,0.00022,30]
[399623878,1766563748907,-159.44808783,0.00013699,2]
[399623879,1766563752813,3932.73,8.567e-05,2]
[399623880,1766563753076,3932.73,9.017e-05,2]
[399623881,1766563753421,2134.55,9.468e-05,2]
[399623882,1766563753450,1798.18,9.468e-05,2]
[399623883,1766563753639,3932.73,9.919e-05,2]
[399623884,1766563755613,-288.21518887,0.0001037,2]
[399623885,1766563765146,-2613.738204,0.0001037,2]
[399623886,1766563765243,-222.6167704,0.0001037,2]
[399623887,1766563767321,-231.94557431,0.0001037,2]
[399623888,1766563774450,-327.71571798,0.0001037,2]
[399623889,1766563776689,-248.49854444,0.0001037,2]
[399623890,1766563776713,-1.50145556,0.00010595,2]
[399623891,1766563782566,-163.83415114,0.00010595,2]
[399623892,1766563784141,-84.6643933,0.00010595,2]
[399623893,1766563784166,-195.30081263,0.00010821,2]
[399623894,1766563790326,-494.74064293,0.00010821,2]
[399623895,1766563792810,-279.92612007,0.00010821,2]
[399623896,1766563796551,-174.88167845,0.00010821,2]
[399623897,1766563798686,-334.41174626,0.00010821,2]
[399623898,1766563804996,-165.58825374,0.00010821,2]
[399623900,1766563807718,-360.15388085,0.00010821,2]
[399623901,1766563809818,-185.42845754,0.00010821,2]
[399623902,1766563813802,-208.48179988,0.00010821,2]
[399623903,1766563817460,-487.89217036,0.00010821,2]
[399623904,1766563823319,-241.46671748,0.00010821,2]
[399623905,1766563824438,-186.28556368,0.00010821,2]
[399623906,1766563830377,-248.81349029,0.00010821,2]
[399623909,1766563831807,-369.35866584,0.00010821,2]
[399623910,1766563831818,-239.0,0.00010821,2]
[399623911,1766563831829,-357.85319893,0.00011172,2]
[399623912,1766563831839,-2801.20939666,0.00011272,2]
[399623913,1766563831852,-1131.52060334,0.00011272,2]
[399623914,1766563831862,-250.0,0.00011407,2]
[399623915,1766563831873,-300.0,0.00011722,2]
[399623916,1766563831883,-1200.0,0.00011722,2]
[399623917,1766563831894,-225.77232604,0.00011722,2]
[399623918,1766563831907,-74.22767396,0.00011722,2]
[399623919,1766563831917,-466.11542602,0.00011723,2]
[399623920,1766563831938,-1242.16060208,0.00011723,2]
[399623921,1766563831951,-324.27327818,0.00011723,2]
[399623922,1766563831962,-253.75974854,0.00011723,2]
[399623923,1766563831974,-1646.42094518,0.00011723,2]
[399623924,1766563831992,-300.0,0.00011903,2]
[399623925,1766563832003,-195.0,0.00011903,2]
[399623926,1766563832013,-250.0,0.00011903,2]
[399623927,1766563832033,-3932.73,0.00012174,2]
[399623928,1766563832052,-3932.73,0.00012624,2]
[399623929,1766563832063,-420.0,0.00012871,2]
[399623930,1766563832074,-420.0,0.00012871,2]
[399623931,1766563832084,-1680.0,0.00012894,2]
[399623932,1766563832094,-357.85319892,0.00013001,2]
[399623933,1766563832104,-3932.73,0.00013075,2]
[399623934,1766563832114,-3932.73,0.00013526,2]
[399623935,1766563832124,-25.10156367,0.00013699,2]
[399623936,1766563832135,-3932.73,0.00013977,2]
[399623937,1766563832144,-587.0,0.00014134,2]
[399623938,1766563832155,-587.0,0.00014134,2]
[399623939,1766563832166,-2351.0,0.00014183,2]
[399623940,1766563832175,-3932.73,0.00014428,2]
[399623941,1766563832185,-1200.0,0.00014441,2]
[399623942,1766563832195,-151.0,0.00014533,2]
[399623943,1766563832205,-151.0,0.00014533,2]
[399623944,1766563832215,-151.0,0.00014533,2]
[399623945,1766563832225,-151.0,0.00014533,2]
[399623946,1766563832235,-151.0,0.00014533,2]
[399623947,1766563832245,-151.0,0.00014533,2]
[399623948,1766563832255,-151.0,0.00014533,2]
[399623949,1766563832265,-151.0,0.00014533,2]
[399623950,1766563832274,-151.0,0.00014533,2]
[399623951,1766563832284,-151.0,0.00014533,2]
[399623952,1766563832294,-151.0,0.00014533,2]
[399623953,1766563832304,-151.0,0.00014533,2]
[399623954,1766563832314,-151.0,0.00014533,2]
[399623955,1766563832324,-283.7540495,0.00014533,2]
[399623956,1766563832334,-150.0,0.0001454,2]
[399623957,1766563832345,-2541.86586204,0.00014541,2]
[399623958,1766563832355,-10567.00801929,0.00014641,2]
[399623959,1766563832365,-567.78,0.00014741,2]
[399623960,1766563832375,-357.85319892,0.0001483,2]
[399623961,1766563832386,-3932.73,0.00014879,2]
[399623962,1766563832396,-1221.51,0.0001493,2]
[399623963,1766563832406,-252.6854649,0.00015068,2]
[399623965,1766563832416,-195.0,0.00015068,2]
[399623966,1766563832427,-3932.73,0.0001533,2]
[399623967,1766563832437,-30094.3635094,0.00015423,2]
[399623968,1766563832447,-823.0,0.0001552,2]
[399623969,1766563832461,-823.0,0.0001552,2]